[Event "Niedersachsen-ch A 2024"]
[Site "Verden Aller"]
[Date "2024.01.05"]
[Round "3.25"]
[White "Drygala, Lars"]
[Black "Hesse, Juergen"]
[Result "1-0"]
[ECO "A48"]
[WhiteElo "1869"]
[BlackElo "1931"]
[Annotator "NA RC"]
[PlyCount "123"]
[EventDate "2024.01.01"]
[EventType "swiss"]
[EventCountry "GER"]
[SourceTitle "playchess.com"]
[Source "ChessBase"]
[SourceQuality "1"]
[TimeControl "40/5400+30:1800+30"]

1. d4 {[%emt 0:00:04]} Nf6 {[%emt 0:00:14]} 2. Nf3 {[%emt 0:00:19]} g6 {[%emt 0:00:52]} 3. Bf4 {[%emt 0:00:19]} Bg7 {[%emt 0:00:44]} 4. e3 {[%emt 0:00:18]} d6 {[%emt 0:03:12]} 5. Be2 {[%emt 0:00:31]} O-O {[%emt 0:02:21]} 6. O-O {[%emt 0:00:37]} Nbd7 {[%emt 0:03:38]} 7. h3 {[%emt 0:02:25]} b6 {[%emt 0:06:57]} 8. a4 {[%emt 0:05:32]} a5 {[%emt 0:03:22]} 9. c3 {[%emt 0:04:49]} Bb7 {[%emt 0:03:23]} 10. Qb3 {[%emt 0:02:56]} Qe8 {[%emt 0:10:16]} 11. Na3 {[%emt 0:02:46]} e5 {[%emt 0:04:37]} 12. Bh2 {[%emt 0:02:49]} Qe7 {[%emt 0:06:31]} 13. Nb5 {[%emt 0:07:48]} Rac8 {[%emt 0:02:08]} 14. Qa3 {[%emt 0:06:59]} Ne4 {[%emt 0:07:35]} 15. Rad1 {[%emt 0:11:24]} f5 {[%emt 0:07:30]} 16. Qb3+ {[%emt 0:07:00]} Kh8 {[%emt 0:00:36]} 17. Qc4 {[%emt 0:00:16]} Ba6 {[%emt 0:04:04]} 18. Qb3 {[%emt 0:03:40]} c6 {[%emt 0:02:23]} 19. Nxd6 {[%emt 0:04:20]} Bxe2 {[%emt 0:00:32]} 20. Nxc8 {[%emt 0:00:17]} Rxc8 {[%emt 0:00:08]} 21. dxe5 {[%emt 0:01:33]} Bxf1 {[%emt 0:02:38]} 22. Kxf1 {[%emt 0:00:58]} Nec5 {[%emt 0:01:37]} 23. Qa2 {[%emt 0:01:24]} Re8 {[%emt 0:02:41]} 24. e6 {[%emt 0:03:07]} Nxe6 {[%emt 0:02:42]} 25. Bg3 {[%emt 0:02:39]} Nf6 {[%emt 0:03:35]} 26. Ne5 {[%emt 0:01:41]} Rd8 {[%emt 0:02:31]} 27. Rxd8+ {[%emt 0:01:04]} Nxd8 {[%emt 0:00:20]} 28. Qc4 {[%emt 0:00:54]} Ne4 {[%emt 0:03:27]} 29. Nxc6 {[%emt 0:01:25]} Nxg3+ {[%emt 0:02:29]} 30. fxg3 {[%emt 0:00:07]} Qc7 {[%emt 0:00:48]} 31. Nxa5 {[%emt 0:00:50]} Qd7 {[%emt 0:05:21]} 32. Nb3 {[%emt 0:01:03]} h6 {[%emt 0:01:38]} 33. Nd4 {[%emt 0:02:12]} Qd6 {[%emt 0:02:03]} 34. Qc8 {[%emt 0:02:31]} Kh7 {[%emt 0:01:10]} 35. b4 {[%emt 0:01:01]} h5 {[%emt 0:00:57]} 36. a5 {[%emt 0:01:06]} Bxd4 {[%emt 0:01:03]} 37. exd4 {[%emt 0:02:18]} bxa5 {[%emt 0:00:35]} 38. bxa5 {[%emt 0:00:07]} Qxg3 {[%emt 0:01:35]} 39. Qxd8 {[%emt 0:00:51]} Qd3+ {[%emt 0:00:10]} 40. Kf2 {[%emt 0:00:46]} Qd2+ {[%emt 0:00:43]} 41. Kf3 {[%emt 0:31:45]} Qxc3+ {[%emt 0:08:21]} 42. Kf4 {[%emt 0:00:00]} Qd2+ {[%emt 0:02:32]} 43. Ke5 {[%emt 0:00:00]} Qxg2 {[%emt 0:01:44]} 44. Kf6 {[%emt 0:00:00]} Qc6+ {[%emt 0:03:04]} 45. Kf7 {[%emt 0:00:00]} f4 {[%emt 0:04:28]} 46. Qg8+ {[%emt 0:00:00]} Kh6 {[%emt 0:00:07]} 47. Qh8+ {[%emt 0:00:00]} Kg5 {[%emt 0:00:11]} 48. Qe5+ {[%emt 0:00:00]} Kh4 {[%emt 0:00:53]} 49. Qxf4+ {[%emt 0:00:00]} Kxh3 {[%emt 0:00:09]} 50. Qe5 {[%emt 0:00:00]} h4 {[%emt 0:01:50]} 51. Qe6+ {[%emt 0:00:00]} Qxe6+ {[%emt 0:00:32]} 52. Kxe6 {[%emt 0:00:00]} g5 {[%emt 0:01:51]} 53. a6 {[%emt 0:00:00]} g4 {[%emt 0:00:05]} 54. a7 {[%emt 0:00:00]} g3 {[%emt 0:00:09]} 55. a8=Q {[%emt 0:00:00]} g2 {[%emt 0:00:19]} 56. Qf3+ {[%emt 0:00:00]} Kh2 {[%emt 0:00:19]} 57. Qf4+ {[%emt 0:00:00]} Kh3 {[%emt 0:00:50]} 58. Qf3+ {[%emt 0:00:00]} Kh2 {[%emt 0:00:08]} 59. Qf2 {[%emt 0:00:00]} h3 {[%emt 0:01:13]} 60. Kf5 {[%emt 0:00:00]} Kh1 {[%emt 0:01:19]} 61. Kg4 {[%emt 0:00:00]} h2 {[%emt 0:00:53]} 62. Kh3 {[%emt 0:00:00]} 1-0

[Event "Niedersachsen-ch A 2024"]
[Site "Verden Aller"]
[Date "2024.01.05"]
[Round "3.26"]
[White "Heirich, Andreas"]
[Black "Moerke, Niklas"]
[Result "*"]
[ECO "D55"]
[WhiteElo "1925"]
[BlackElo "1800"]
[Annotator "RC"]
[PlyCount "72"]
[EventDate "2024.01.01"]
[EventType "swiss"]
[EventCountry "GER"]
[SourceTitle "playchess.com"]
[Source "ChessBase"]
[SourceQuality "1"]
[TimeControl "40/5400+30:1800+30"]

1. d4 {[%emt 0:00:02]} d5 {[%emt 0:00:03]} 2. c4 {[%emt 0:00:07]} e6 {[%emt 0:00:04]} 3. Nc3 {[%emt 0:00:06]} Nf6 {[%emt 0:00:22]} 4. Bg5 {[%emt 0:00:10]} Be7 {[%emt 0:00:09]} 5. e3 {[%emt 0:00:23]} O-O {[%emt 0:00:22]} 6. Nf3 {[%emt 0:00:10]} Re8 {[%emt 0:00:40]} 7. Be2 {[%emt 0:00:33]} b6 {[%emt 0:00:37]} 8. O-O {[%emt 0:00:17]} Bb7 {[%emt 0:00:03]} 9. Rc1 {[%emt 0:00:26]} Ne4 {[%emt 0:03:01]} 10. Bxe7 {[%emt 0:00:41]} Qxe7 {[%emt 0:00:13]} 11. Qc2 {[%emt 0:00:57]} c5 {[%emt 0:03:19]} 12. dxc5 {[%emt 0:12:29]} Nxc5 {[%emt 0:04:07]} 13. cxd5 {[%emt 0:02:56]} exd5 {[%emt 0:01:10]} 14. Rfd1 {[%emt 1:18:13]} Rd8 {[%emt 0:00:44]} 15. Qf5 {[%emt 0:03:35]} Qe6 {[%emt 0:07:30]} 16. Qh5 {[%emt 0:04:02]} Qg6 {[%emt 0:03:05]} 17. Qh4 {[%emt 0:06:06]} Nba6 {[%emt 0:01:03]} 18. Rd4 {[%emt 0:00:58]} Qf6 {[%emt 0:05:43]} 19. Qxf6 {[%emt 0:04:44]} gxf6 {[%emt 0:00:11]} 20. Rcd1 {[%emt 0:02:44]} Nc7 {[%emt 0:00:59]} 21. Nb5 {[%emt 0:10:13]} Nxb5 {[%emt 0:02:52]} 22. Bxb5 {[%emt 0:00:02]} a6 {[%emt 0:02:03]} 23. Bc4 {[%emt 0:02:55]} Ne6 {[%emt 0:00:40]} 24. Rg4+ {[%emt 0:00:10]} Kh8 {[%emt 0:02:30]} 25. Bd3 {[%emt 0:00:23]} Rg8 {[%emt 0:01:02]} 26. Rxg8+ {[%emt 0:00:34]} Kxg8 {[%emt 0:01:04]} 27. Bf5 {[%emt 0:04:44]} h6 {[%emt 0:03:14]} 28. Nd4 {[%emt 0:03:52]} Nxd4 {[%emt 0:00:27]} 29. Rxd4 {[%emt 0:00:11]} Bc8 {[%emt 0:00:27]} 30. Bxc8 {[%emt 0:00:41]} Rxc8 {[%emt 0:00:12]} 31. Kf1 {[%emt 0:00:06]} Rc2 {[%emt 0:58:04]} 32. Rb4 {[%emt 0:01:35]} b5 {[%emt 0:00:08]} 33. a3 {[%emt 0:00:17]} Kf8 {[%emt 0:00:24]} 34. b3 {[%emt 0:00:12]} Ke7 {[%emt 0:01:18]} 35. a4 {[%emt 0:00:15]} bxa4 {[%emt 0:00:22]} 36. Rxa4 {[%emt 0:00:36]} Rc6 {[%emt 0:00:55]} *

[Event "Niedersachsen-ch A 2024"]
[Site "Verden Aller"]
[Date "2024.01.05"]
[Round "3.27"]
[White "Aden, Dagmar"]
[Black "Arndt, Felix"]
[Result "*"]
[ECO "A49"]
[WhiteElo "1766"]
[BlackElo "1901"]
[Annotator "RC"]
[PlyCount "55"]
[EventDate "2024.01.01"]
[EventType "swiss"]
[EventCountry "GER"]
[SourceTitle "playchess.com"]
[Source "ChessBase"]
[SourceQuality "1"]
[TimeControl "40/5400+30:1800+30"]

1. Nf3 {[%emt 0:00:04]} Nf6 {[%emt 0:00:06]} 2. g3 {[%emt 0:00:08]} g6 {[%emt 0:00:11]} 3. Bg2 {[%emt 0:00:10]} Bg7 {[%emt 0:00:05]} 4. d4 {[%emt 0:00:50]} O-O {[%emt 0:00:31]} 5. O-O {[%emt 0:00:25]} d6 {[%emt 0:01:01]} 6. Re1 {[%emt 0:01:05]} c6 {[%emt 0:00:43]} 7. c4 {[%emt 0:02:25]} Qc7 {[%emt 0:02:36]} 8. Nc3 {[%emt 0:01:22]} e5 {[%emt 0:01:58]} 9. e4 {[%emt 0:03:07]} Bg4 {[%emt 0:01:45]} 10. dxe5 {[%emt 0:01:06]} dxe5 {[%emt 0:00:22]} 11. Qb3 {[%emt 0:02:59]} Nbd7 {[%emt 0:02:34]} 12. Be3 {[%emt 0:01:29]} Nb6 {[%emt 0:06:55]} 13. Bxb6 {[%emt 0:02:30]} axb6 {[%emt 0:00:42]} 14. h3 {[%emt 0:02:32]} Bd7 {[%emt 0:01:41]} 15. Na4 {[%emt 0:03:59]} Ra6 {[%emt 0:04:26]} 16. c5 {[%emt 0:06:07]} b5 {[%emt 0:03:46]} 17. Nb6 {[%emt 0:04:27]} Be6 {[%emt 0:00:09]} 18. Qc2 {[%emt 0:01:35]} h6 {[%emt 0:01:12]} 19. a4 {[%emt 0:02:58]} bxa4 {[%emt 0:03:01]} 20. Rxa4 {[%emt 0:00:17]} Rxa4 {[%emt 0:00:15]} 21. Qxa4 {[%emt 0:00:26]} Nd7 {[%emt 0:00:51]} 22. Nxd7 {[%emt 0:00:57]} Qxd7 {[%emt 0:00:41]} 23. Rd1 {[%emt 0:02:22]} Qc8 {[%emt 0:02:41]} 24. Kh2 {[%emt 0:01:16]} f5 {[%emt 0:02:52]} 25. exf5 {[%emt 0:02:54]} Rxf5 {[%emt 0:07:09]} 26. Nh4 {[%emt 0:13:12]} Rxf2 {[%emt 0:03:10]} 27. Nxg6 {[%emt 0:00:58]} Qe8 {[%emt 0:04:22]} 28. Nh4 {[%emt 0:03:41]} *

[Event "Niedersachsen-ch A 2024"]
[Site "Verden Aller"]
[Date "2024.01.05"]
[Round "3.28"]
[White "Langer, Michael S."]
[Black "Poelig, Juergen"]
[Result "*"]
[ECO "D00"]
[WhiteElo "1888"]
[BlackElo "1819"]
[Annotator "NA RC"]
[PlyCount "32"]
[EventDate "2024.01.01"]
[EventType "swiss"]
[EventCountry "GER"]
[SourceTitle "playchess.com"]
[Source "ChessBase"]
[SourceQuality "1"]
[TimeControl "40/5400+30:1800+30"]

1. d4 {[%emt 0:00:10]} d5 {[%emt 0:01:08]} 2. Bf4 {[%emt 0:00:13]} e6 {[%emt 0:00:37]} 3. e3 {[%emt 1:31:37]} c5 {[%emt 0:00:12]} 4. c3 {[%emt 0:00:33]} Nc6 {[%emt 0:00:17]} 5. Nd2 {[%emt 0:01:05]} Be7 {[%emt 0:03:31]} 6. Bd3 {[%emt 0:03:22]} f5 {[%emt 0:02:42]} 7. Ngf3 {[%emt 0:11:18]} Nf6 {[%emt 0:00:28]} 8. Ne5 {[%emt 0:04:37]} Bd7 {[%emt 0:01:46]} 9. Nxd7 {[%emt 0:03:56]} Qxd7 {[%emt 0:00:59]} 10. Nf3 {[%emt 0:09:25]} O-O-O {[%emt 1:23:50]} 11. Bb5 {[%emt 0:11:34]} Bd6 {[%emt 1:07:28]} 12. Ne5 {[%emt 0:09:41]} Qc7 {[%emt 0:02:45]} 13. Qa4 {[%emt 0:09:29]} Nxe5 {[%emt 0:13:12]} 14. dxe5 {[%emt 0:00:08]} Bxe5 {[%emt 0:00:12]} 15. Bxe5 {[%emt 0:00:19]} Qxe5 {[%emt 0:00:03]} 16. Qxa7 {[%emt 0:00:22]} Qd6 {[%emt 0:02:00]} *

[Event "Niedersachsen-ch A 2024"]
[Site "Verden Aller"]
[Date "2024.01.05"]
[Round "3.29"]
[White "Harms, Friedjof"]
[Black "Stiller, Maximilian"]
[Result "*"]
[ECO "B13"]
[WhiteElo "1844"]
[BlackElo "1786"]
[Annotator "NA RC"]
[PlyCount "51"]
[EventDate "2024.01.01"]
[EventType "swiss"]
[EventCountry "GER"]
[SourceTitle "playchess.com"]
[Source "ChessBase"]
[SourceQuality "1"]
[TimeControl "40/5400+30:1800+30"]

1. e4 {[%emt 0:00:01]} c6 {[%emt 0:00:09]} 2. d4 {[%emt 0:00:03]} d5 {[%emt 0:00:09]} 3. exd5 {[%emt 0:00:05]} cxd5 {[%emt 0:00:10]} 4. Bd3 {[%emt 0:00:04]} Nc6 {[%emt 0:00:10]} 5. c3 {[%emt 0:00:03]} Nf6 {[%emt 0:00:13]} 6. Bf4 {[%emt 0:00:08]} Bg4 {[%emt 0:00:20]} 7. Qb3 {[%emt 0:00:49]} Qd7 {[%emt 1:32:49]} 8. Nd2 {[%emt 0:01:51]} e6 {[%emt 0:00:17]} 9. h3 {[%emt 0:00:27]} Bh5 {[%emt 0:00:44]} 10. Ngf3 {[%emt 0:00:28]} Bd6 {[%emt 0:01:04]} 11. Bxd6 {[%emt 0:03:45]} Qxd6 {[%emt 0:00:03]} 12. O-O {[%emt 1:28:46]} O-O {[%emt 0:00:34]} 13. Rfe1 {[%emt 0:00:19]} Bg6 {[%emt 0:04:14]} 14. Bxg6 {[%emt 0:04:11]} hxg6 {[%emt 0:00:12]} 15. Ne5 {[%emt 0:01:06]} Rfc8 {[%emt 0:06:13]} 16. Qxb7 {[%emt 0:09:43]} Ne7 {[%emt 0:01:24]} 17. Qb3 {[%emt 0:12:45]} Rab8 {[%emt 0:00:43]} 18. Qc2 {[%emt 0:05:54]} Nf5 {[%emt 0:01:05]} 19. Nb3 {[%emt 0:16:32]} Qb6 {[%emt 0:01:48]} 20. Re2 {[%emt 0:03:51]} Rc7 {[%emt 0:07:44]} 21. Nc5 {[%emt 0:03:45]} a5 {[%emt 0:02:35]} 22. Qd3 {[%emt 0:09:34]} Nd6 {[%emt 1:11:19]} 23. Na6 {[%emt 0:03:44]} Rcb7 {[%emt 0:01:11]} 24. Nxb8 {[%emt 0:00:38]} Rxb8 {[%emt 0:00:02]} 25. g4 {[%emt 0:05:22]} Rc8 {[%emt 0:01:01]} 26. Rb1 {[%emt 0:01:43]} *

[Event "Niedersachsen-ch A 2024"]
[Site "Verden Aller"]
[Date "2024.01.05"]
[Round "3.30"]
[White "Gehrke, Mathias"]
[Black "Lehmkuhl, Stefan"]
[Result "1/2-1/2"]
[ECO "A53"]
[WhiteElo "1761"]
[BlackElo "1839"]
[Annotator "NA RC"]
[PlyCount "51"]
[EventDate "2024.01.01"]
[EventType "swiss"]
[EventCountry "GER"]
[SourceTitle "playchess.com"]
[Source "ChessBase"]
[SourceQuality "1"]
[TimeControl "40/5400+30:1800+30"]

1. Nf3 {[%emt 1:31:00]} d6 {[%emt 0:02:39]} 2. d4 {[%emt 0:00:00]} Nf6 {[%emt 0:00:49]} 3. g3 {[%emt 0:00:00]} c6 {[%emt 0:00:11]} 4. Bg2 {[%emt 0:00:00]} Nbd7 {[%emt 0:00:16]} 5. c4 {[%emt 0:00:00]} e5 {[%emt 0:00:17]} 6. dxe5 {[%emt 0:00:00]} dxe5 {[%emt 0:00:12]} 7. O-O {[%emt 0:00:00]} Be7 {[%emt 0:00:26]} 8. b3 {[%emt 0:00:00]} O-O {[%emt 0:00:19]} 9. Bb2 {[%emt 0:00:00]} Qc7 {[%emt 0:00:10]} 10. Qc2 {[%emt 0:00:00]} Re8 {[%emt 0:00:34]} 11. Nbd2 {[%emt 0:00:00]} Bf8 {[%emt 0:00:25]} 12. e4 {[%emt 0:00:00]} a5 {[%emt 0:01:59]} 13. Rad1 {[%emt 0:00:00]} Nc5 {[%emt 0:00:29]} 14. Rfe1 {[%emt 0:00:00]} Bd7 {[%emt 0:03:56]} 15. a3 {[%emt 0:00:00]} Rad8 {[%emt 0:00:47]} 16. b4 {[%emt 0:00:00]} axb4 {[%emt 0:00:30]} 17. axb4 {[%emt 0:00:00]} Na6 {[%emt 0:00:03]} 18. Bc3 {[%emt 0:00:00]} Bxb4 {[%emt 0:01:07]} 19. Bxb4 {[%emt 0:00:00]} Nxb4 {[%emt 0:02:35]} 20. Qb3 {[%emt 0:00:00]} c5 {[%emt 0:01:06]} 21. Nb1 {[%emt 0:00:00]} Bc6 {[%emt 0:00:35]} 22. Nc3 {[%emt 0:00:00]} h6 {[%emt 0:03:31]} 23. Rxd8 {[%emt 0:00:00]} Qxd8 {[%emt 0:01:16]} 24. Nd5 {[%emt 0:00:00]} Bxd5 {[%emt 0:01:35]} 25. exd5 {[%emt 0:00:00]} Nd7 {[%emt 0:01:29]} 26. Qa4 {[%emt 0:00:00]} 1/2-1/2

[Event "Niedersachsen-ch A 2024"]
[Site "Verden Aller"]
[Date "2024.01.05"]
[Round "3.32"]
[White "Aden, Keno"]
[Black "Hoke, Joshua"]
[Result "0-1"]
[ECO "E06"]
[WhiteElo "1832"]
[BlackElo "1600"]
[Annotator "NA RC"]
[PlyCount "142"]
[EventDate "2024.01.01"]
[EventType "swiss"]
[EventCountry "GER"]
[SourceTitle "playchess.com"]
[Source "ChessBase"]
[SourceQuality "1"]
[TimeControl "40/5400+30:1800+30"]

1. d4 {[%emt 0:00:03]} d5 {[%emt 0:01:48]} 2. Nf3 {[%emt 0:00:07]} Nf6 {[%emt 0:00:38]} 3. c4 {[%emt 0:00:05]} e6 {[%emt 0:00:14]} 4. g3 {[%emt 0:00:05]} Be7 {[%emt 0:01:08]} 5. Bg2 {[%emt 0:00:05]} c6 {[%emt 0:00:35]} 6. O-O {[%emt 0:00:06]} O-O {[%emt 0:00:08]} 7. Qc2 {[%emt 0:00:04]} b6 {[%emt 0:01:50]} 8. Nbd2 {[%emt 0:00:05]} Bb7 {[%emt 0:01:26]} 9. e4 {[%emt 0:00:06]} Na6 {[%emt 0:02:04]} 10. Rd1 {[%emt 0:11:06]} c5 {[%emt 0:09:06]} 11. exd5 {[%emt 0:20:02]} exd5 {[%emt 0:05:04]} 12. dxc5 {[%emt 0:04:33]} Nxc5 {[%emt 0:12:32]} 13. cxd5 {[%emt 0:10:08]} Bxd5 {[%emt 0:03:55]} 14. b4 {[%emt 0:12:28]} Ne6 {[%emt 0:03:04]} 15. a3 {[%emt 0:00:54]} Rc8 {[%emt 0:06:28]} 16. Qd3 {[%emt 0:00:45]} Qc7 {[%emt 0:08:29]} 17. Bb2 {[%emt 0:06:23]} Qc2 {[%emt 0:09:51]} 18. Qxc2 {[%emt 0:00:18]} Rxc2 {[%emt 0:00:07]} 19. Be5 {[%emt 0:01:18]} Rfc8 {[%emt 0:03:50]} 20. Ne1 {[%emt 0:03:15]} Ra2 {[%emt 0:04:46]} 21. Bxf6 {[%emt 0:03:14]} Bxf6 {[%emt 0:00:40]} 22. Rxa2 {[%emt 0:02:04]} Bxa2 {[%emt 0:00:20]} 23. Ne4 {[%emt 0:01:49]} Be7 {[%emt 0:02:48]} 24. Nd3 {[%emt 0:03:27]} Bb3 {[%emt 0:05:14]} 25. Rd2 {[%emt 0:01:04]} Ng5 {[%emt 0:00:53]} 26. f4 {[%emt 0:04:37]} Nxe4 {[%emt 0:01:30]} 27. Bxe4 {[%emt 0:00:02]} a5 {[%emt 0:02:37]} 28. Kf2 {[%emt 0:09:25]} axb4 {[%emt 0:01:45]} 29. axb4 {[%emt 0:00:13]} Rd8 {[%emt 0:00:40]} 30. Ke3 {[%emt 0:01:49]} g6 {[%emt 0:01:38]} 31. g4 {[%emt 0:00:50]} Be6 {[%emt 0:01:20]} 32. h3 {[%emt 0:00:31]} h5 {[%emt 0:01:02]} 33. Rg2 {[%emt 0:00:46]} hxg4 {[%emt 0:00:44]} 34. hxg4 {[%emt 0:00:06]} Bc4 {[%emt 0:00:56]} 35. Rb2 {[%emt 0:01:55]} Bf6 {[%emt 0:00:23]} 36. Rc2 {[%emt 0:02:33]} Bb3 {[%emt 0:02:27]} 37. Rc6 {[%emt 0:00:42]} Bd4+ {[%emt 0:00:20]} 38. Kf3 {[%emt 0:01:53]} Bd1+ {[%emt 0:00:43]} 39. Kg3 {[%emt 0:00:13]} Re8 {[%emt 0:00:40]} 40. Ne5 {[%emt 0:00:41]} Bxe5 {[%emt 0:04:21]} 41. fxe5 {[%emt 0:30:38]} Rxe5 {[%emt 0:30:38]} 42. Kf4 {[%emt 0:00:00]} Rb5 {[%emt 0:00:00]} 43. Rc4 {[%emt 0:00:00]} Bb3 {[%emt 0:00:00]} 44. Rd4 {[%emt 0:00:00]} g5+ {[%emt 0:00:00]} 45. Kf3 {[%emt 0:00:00]} Kg7 {[%emt 0:00:00]} 46. Bf5 {[%emt 0:00:00]} Kf6 {[%emt 0:00:00]} 47. Bd3 {[%emt 0:00:00]} Rd5 {[%emt 0:00:00]} 48. Ke4 {[%emt 0:00:00]} Rxd4+ {[%emt 0:00:00]} 49. Kxd4 {[%emt 0:00:00]} Ke6 {[%emt 0:00:00]} 50. b5 {[%emt 0:00:00]} Kd6 {[%emt 0:00:00]} 51. Ke4 {[%emt 0:00:00]} Be6 {[%emt 0:00:00]} 52. Be2 {[%emt 0:00:00]} Bd7 {[%emt 0:00:00]} 53. Kd4 {[%emt 0:00:00]} f6 {[%emt 0:00:00]} 54. Ke4 {[%emt 0:00:00]} Kc5 {[%emt 0:00:00]} 55. Bd1 {[%emt 0:00:00]} Bc8 {[%emt 0:01:25]} 56. Be2 {[%emt 0:00:32]} Be6 {[%emt 0:00:17]} 57. Ke3 {[%emt 0:02:06]} Bc4 {[%emt 0:01:44]} 58. Bxc4 {[%emt 0:00:01]} Kxc4 {[%emt 0:00:11]} 59. Ke4 {[%emt 0:00:01]} Kxb5 {[%emt 0:00:20]} 60. Kf5 {[%emt 0:00:02]} Kc5 {[%emt 0:00:41]} 61. Kxf6 {[%emt 0:00:05]} b5 {[%emt 0:00:08]} 62. Kxg5 {[%emt 0:00:03]} b4 {[%emt 0:00:11]} 63. Kf6 {[%emt 0:00:10]} b3 {[%emt 0:00:17]} 64. g5 {[%emt 0:00:02]} b2 {[%emt 0:00:06]} 65. g6 {[%emt 0:00:04]} b1=Q {[%emt 0:00:08]} 66. g7 {[%emt 0:00:12]} Qf1+ {[%emt 0:00:21]} 67. Ke7 {[%emt 0:01:39]} Qe2+ {[%emt 0:00:18]} 68. Kf8 {[%emt 0:00:42]} Qf3+ {[%emt 0:00:11]} 69. Kg8 {[%emt 0:00:15]} Kd6 {[%emt 0:00:28]} 70. Kh7 {[%emt 0:00:17]} Qh5+ {[%emt 0:00:07]} 71. Kg8 {[%emt 0:00:04]} Ke6 {[%emt 0:00:21]} 0-1

[Event "Niedersachsen-ch A 2024"]
[Site "Verden Aller"]
[Date "2024.01.05"]
[Round "3.33"]
[White "Bisa, Gani"]
[Black "ter Stal, Lars"]
[Result "0-1"]
[ECO "E32"]
[WhiteElo "1931"]
[BlackElo "1770"]
[Annotator "RC"]
[PlyCount "133"]
[EventDate "2024.01.01"]
[EventType "swiss"]
[EventCountry "GER"]
[SourceTitle "playchess.com"]
[Source "ChessBase"]
[SourceQuality "1"]
[TimeControl "40/5400+30:1800+30"]

1. d4 {[%emt 0:00:01]} Nf6 {[%emt 0:00:30]} 2. c4 {[%emt 0:00:10]} e6 {[%emt 0:00:09]} 3. Nc3 {[%emt 0:00:07]} Bb4 {[%emt 0:00:21]} 4. Qc2 {[%emt 0:00:14]} O-O {[%emt 0:00:43]} 5. Nf3 {[%emt 0:00:13]} b6 {[%emt 0:03:57]} 6. g3 {[%emt 0:01:19]} Bb7 {[%emt 0:00:09]} 7. Bg2 {[%emt 0:00:34]} d6 {[%emt 0:03:07]} 8. O-O {[%emt 0:00:28]} Bxc3 {[%emt 0:02:03]} 9. Qxc3 {[%emt 0:01:14]} Nbd7 {[%emt 0:01:12]} 10. Re1 {[%emt 0:01:16]} Ne4 {[%emt 0:07:16]} 11. Qc2 {[%emt 0:02:41]} Rb8 {[%emt 0:12:07]} 12. b3 {[%emt 0:04:29]} f5 {[%emt 0:04:53]} 13. e3 {[%emt 0:01:05]} Qe8 {[%emt 0:04:21]} 14. Bd2 {[%emt 0:06:22]} Qh5 {[%emt 0:01:55]} 15. Red1 {[%emt 0:04:37]} Nxg3 {[%emt 0:08:27]} 16. d5 {[%emt 0:04:51]} Ne4 {[%emt 0:01:58]} 17. Bc3 {[%emt 0:03:22]} e5 {[%emt 0:05:17]} 18. Kh1 {[%emt 0:01:42]} Ndf6 {[%emt 0:01:17]} 19. Be1 {[%emt 0:07:03]} Ng4 {[%emt 0:03:56]} 20. h3 {[%emt 0:01:27]} Bc8 {[%emt 0:03:40]} 21. Kg1 {[%emt 0:01:56]} Nh6 {[%emt 0:01:28]} 22. Kf1 {[%emt 0:07:12]} f4 {[%emt 0:02:00]} 23. Ng1 {[%emt 0:18:43]} Ng5 {[%emt 0:06:12]} 24. exf4 {[%emt 0:12:06]} exf4 {[%emt 0:06:59]} 25. f3 {[%emt 0:06:08]} Bxh3 {[%emt 0:05:20]} 26. Bxh3 {[%emt 0:02:12]} Nxh3 {[%emt 0:04:21]} 27. Qh2 {[%emt 0:01:41]} Nf5 {[%emt 0:00:38]} 28. Qxh3 {[%emt 0:03:02]} Ne3+ {[%emt 0:00:35]} 29. Kf2 {[%emt 0:00:24]} Nxd1+ {[%emt 0:00:28]} 30. Rxd1 {[%emt 0:00:12]} Qe5 {[%emt 0:00:42]} 31. Rd3 {[%emt 0:01:21]} Rbe8 {[%emt 0:00:51]} 32. Bc3 {[%emt 0:00:17]} Qg5 {[%emt 0:02:02]} 33. Ne2 {[%emt 0:01:33]} Rf7 {[%emt 0:01:39]} 34. Nd4 {[%emt 0:02:03]} h5 {[%emt 0:02:55]} 35. Ne6 {[%emt 0:00:21]} Qh6 {[%emt 0:00:29]} 36. Bd2 {[%emt 0:02:30]} Kh7 {[%emt 0:01:05]} 37. Rd4 {[%emt 0:00:37]} g5 {[%emt 0:00:42]} 38. Re4 {[%emt 0:00:27]} Rg8 {[%emt 0:00:40]} 39. Qh2 {[%emt 0:01:03]} Rf5 {[%emt 0:00:50]} 40. Nd4 {[%emt 0:00:30]} Re5 {[%emt 0:00:25]} 41. Kf1 {[%emt 0:31:55]} Qg6 {[%emt 0:08:51]} 42. Qh1 {[%emt 0:00:00]} Kh6 {[%emt 0:04:00]} 43. Qg2 {[%emt 0:00:00]} Rf8 {[%emt 0:03:39]} 44. Qe2 {[%emt 0:00:00]} Rfe8 {[%emt 0:03:51]} 45. Ne6 {[%emt 0:00:00]} Rxe4 {[%emt 0:01:52]} 46. fxe4 {[%emt 0:00:00]} Qf6 {[%emt 0:03:10]} 47. Qd3 {[%emt 0:00:00]} Qa1+ {[%emt 0:01:52]} 48. Kg2 {[%emt 0:00:00]} Qd1 {[%emt 0:00:38]} 49. Kf2 {[%emt 0:00:00]} Re7 {[%emt 0:05:30]} 50. Nxg5 {[%emt 0:00:00]} Rg7 {[%emt 0:00:47]} 51. Nf3 {[%emt 0:00:00]} Qh1 {[%emt 0:01:39]} 52. Bxf4+ {[%emt 0:00:00]} Kh7 {[%emt 0:00:05]} 53. e5+ {[%emt 0:00:00]} Kg8 {[%emt 0:00:20]} 54. Ng5 {[%emt 0:00:00]} dxe5 {[%emt 0:00:59]} 55. Be3 {[%emt 0:01:14]} Qh4+ {[%emt 0:00:25]} 56. Kf1 {[%emt 0:01:08]} Rxg5 {[%emt 0:00:22]} 57. Bxg5 {[%emt 0:01:31]} Qxg5 {[%emt 0:00:07]} 58. d6 {[%emt 0:00:44]} Qf6+ {[%emt 0:00:11]} 59. Kg2 {[%emt 0:00:08]} cxd6 {[%emt 0:00:37]} 60. Kh3 {[%emt 0:01:10]} Kf7 {[%emt 0:01:32]} 61. Qh7+ {[%emt 0:00:47]} Ke6 {[%emt 0:00:10]} 62. Qg8+ {[%emt 0:00:41]} Kf5 {[%emt 0:00:21]} 63. Qh7+ {[%emt 0:03:02]} Qg6 {[%emt 0:00:48]} 64. Qd7+ {[%emt 0:00:28]} Kf4 {[%emt 0:00:09]} 65. Kh2 {[%emt 0:00:46]} Qg3+ {[%emt 0:00:06]} 66. Kh1 {[%emt 0:00:22]} Qh4+ {[%emt 0:00:04]} 67. Kg1 {[%emt 0:00:34]} 0-1

[Event "Niedersachsen-ch A 2024"]
[Site "Verden Aller"]
[Date "2024.01.05"]
[Round "3.34"]
[White "Nuerenberg, Marius"]
[Black "Vormann, Dirk"]
[Result "1/2-1/2"]
[ECO "C42"]
[WhiteElo "1764"]
[BlackElo "1854"]
[Annotator "NA RC"]
[PlyCount "26"]
[EventDate "2024.01.01"]
[EventType "swiss"]
[EventCountry "GER"]
[SourceTitle "playchess.com"]
[Source "ChessBase"]
[SourceQuality "1"]
[TimeControl "40/5400+30:1800+30"]

1. e4 {[%emt 0:00:03]} e5 {[%emt 0:00:03]} 2. Nf3 {[%emt 0:00:07]} Nf6 {[%emt 0:00:02]} 3. Nxe5 {[%emt 0:00:07]} d6 {[%emt 0:00:03]} 4. Nf3 {[%emt 0:00:05]} Nxe4 {[%emt 0:00:05]} 5. Nc3 {[%emt 0:00:06]} Nxc3 6. dxc3 {[%emt 0:00:05]} Be7 {[%emt 0:00:35]} 7. Be3 {[%emt 0:00:16]} Nd7 {[%emt 0:00:09]} 8. Qd2 {[%emt 0:00:40]} Nf6 {[%emt 0:00:06]} 9. O-O-O {[%emt 0:00:27]} O-O {[%emt 0:00:32]} 10. h4 {[%emt 0:01:43]} c5 {[%emt 0:00:17]} 11. Bc4 {[%emt 0:07:26]} Qa5 {[%emt 0:02:57]} 12. Bb3 {[%emt 0:21:30]} b5 {[%emt 0:00:21]} 13. c4 {[%emt 0:02:18]} Qxd2+ {[%emt 0:00:49]} 1/2-1/2